bitfinex/quotes_SOLUSD_20250829
["timestamp","ask_amount","ask_price","bid_price","bid_amount"]
[1756431591060,0.74,214.2,214.17,38.34]
[1756431591239,3.46622312,214.19,214.17,38.34]
[1756431592574,3.18310724,214.2,214.17,38.34]
[1756431592751,3.46985038,214.19,214.17,38.34]
[1756431593366,3.47111263,214.18,214.17,38.34]
[1756431593660,3.47111263,214.19,214.17,43.00918802]
[1756431593863,3.18310724,214.2,214.15,87.40073603]
[1756431593864,3.47111263,214.18,214.15,85.51161036]
[1756431594064,10.70901442,214.17,214.13,0.03]
[1756431594243,6.55857446,214.14,214.13,0.03]
[1756431594442,10.02901442,214.14,214.13,0.03]
[1756431594852,10.70901442,214.14,214.13,0.03]
[1756431595047,4.72867594,214.2,214.17,0.03]
[1756431595048,0.06,214.2,214.17,0.03]
[1756431595259,3.47096413,214.19,214.17,0.03]
[1756431595466,6.59513502,214.19,214.17,0.03]
[1756431595780,3.47096413,214.18,214.17,0.03]
[1756431596082,3.47117666,214.18,214.17,0.03]
[1756431596745,3.47117666,214.19,214.17,0.03]
[1756431596950,4.15117666,214.18,214.17,0.03]
[1756431597247,3.47117666,214.18,214.17,0.03]
[1756431597446,0.06,214.2,214.18,0.28432314]
[1756431597676,0.06,214.2,214.19,50.53164964]
[1756431598077,0.06,214.2,214.19,43.00875204]
[1756431598251,0.06,214.2,214.18,38.34]
[1756431598577,3.4703752,214.19,214.18,38.34]
[1756431599275,3.4703752,214.19,214.17,0.03]
[1756431600162,3.4703752,214.19,214.18,0.7]
[1756431600365,0.06,214.2,214.18,7.25857446]
[1756431601076,6.61857446,214.2,214.17,0.03]
[1756431601251,10.7055957,214.19,214.17,0.03]
[1756431601455,3.46702124,214.18,214.17,0.03]
[1756431601695,0.06,214.2,214.18,14.29559401]
[1756431601859,0.06,214.22,214.21,26.14216157]
[1756431602050,0.06,214.22,214.21,71.5028976]
[1756431602357,5.12014114,214.35,214.23,0.14216157]
[1756431602358,3.12280402,214.3,214.23,0.14216157]
[1756431602550,3.12280402,214.34,214.29,6.55857446]
[1756431602753,3.12280402,214.34,214.24,65.46]
[1756431602754,7.23857446,214.32,214.27,38.8]
[1756431602963,6.55857446,214.32,214.27,38.8]
[1756431603166,6.61857446,214.33,214.27,45.35857446]
[1756431603380,6.61857446,214.33,214.32,20.15416847]
[1756431603381,0.06,214.33,214.32,20.15416847]
[1756431603557,0.06,214.33,214.32,60.15849161]
[1756431603760,0.06,214.33,214.32,64.82441172]
[1756431604679,0.06,214.33,214.32,4.66592011]
[1756431604977,0.06,214.33,214.31,43.68612239]
[1756431605767,7.23857446,214.32,214.25,6.55857446]
[1756431605966,6.55857446,214.31,214.26,39.04]
[1756431606375,0.68,214.3,214.26,39.04]
[1756431606662,6.55857446,214.27,214.24,39.04]
[1756431606854,0.68,214.27,214.24,39.04]
[1756431607055,0.74,214.33,214.26,6.55857446]
[1756431607286,0.06,214.33,214.3,6.55857446]
[1756431607663,0.06,214.33,214.31,6.55857446]
[1756431607868,0.06,214.33,214.32,4.66592011]
[1756431608185,0.06,214.33,214.32,11.22449457]
[1756431608392,0.06,214.33,214.32,25.80441172]
[1756431608567,0.06,214.38,214.33,13.87991715]
[1756431608770,0.06,214.38,214.37,20.43849161]
[1756431609072,0.06,214.38,214.37,59.59849161]
[1756431609261,0.06,214.38,214.37,63.75320916]
[1756431609862,0.06,214.38,214.37,68.41804099]
[1756431611176,1e-08,214.38,214.37,68.41804099]
[1756431612285,1e-08,214.38,214.37,79.41804099]
[1756431614890,1e-08,214.38,214.37,160.11804099]
[1756431615075,1e-08,214.38,214.37,120.95804099]
[1756431615284,1e-08,214.38,214.37,159.97804099]
[1756431617488,1e-08,214.38,214.37,120.95804099]
[1756431617678,1e-08,214.38,214.37,160.01804099]
[1756431619415,1e-08,214.41,214.4,39.59559401]
[1756431619613,1e-08,214.41,214.4,169.61320916]
[1756431619799,1e-08,214.41,214.4,170.31320916]
[1756431620186,1e-08,214.43,214.41,94.57991715]
[1756431620510,1e-08,214.43,214.42,62.83320916]
[1756431620696,1e-08,214.43,214.42,63.99958356]
[1756431621015,13.59559401,214.63,214.42,63.99958356]
[1756431621186,0.68,214.56,214.54,10.01329201]
[1756431621393,0.68,214.56,214.54,53.59442746]
[1756431621587,0.78,214.55,214.54,38.92]
[1756431621911,0.78,214.55,214.54,53.59442746]
[1756431622211,0.78,214.55,214.52,4.66139836]
[1756431622423,0.78,214.55,214.54,10.01329201]
[1756431622608,0.78,214.55,214.53,48.95329201]
[1756431622914,0.68,214.54,214.53,38.94]
[1756431623288,0.68,214.54,214.51,4.66173708]
[1756431623498,0.68,214.54,214.52,39.18432314]
[1756431624222,0.68,214.54,214.53,10.01329201]
[1756431624399,0.1,214.55,214.53,10.01329201]
[1756431624592,0.1,214.55,214.54,38.9]
[1756431625118,10.79329201,214.55,214.46,18.2584682]
[1756431625417,10.01329201,214.53,214.47,53.53584152]
[1756431625590,0.68,214.54,214.52,10.01329201]
[1756431625791,0.68,214.54,214.52,48.87329201]
[1756431626021,0.68,214.54,214.52,38.86]
[1756431626192,0.1,214.55,214.53,10.01329201]
[1756431626388,0.68,214.54,214.52,48.87329201]
[1756431626616,0.1,214.55,214.52,38.86]
[1756431626802,0.68,214.53,214.51,10.01329201]
[1756431627003,0.68,214.53,214.52,38.84]
[1756431628215,0.1,214.55,214.53,0.28432314]
[1756431628416,0.1,214.55,214.54,62.71320916]
[1756431628605,0.1,214.55,214.54,39.10432314]
[1756431629010,0.1,214.55,214.54,49.11761515]
[1756431629204,0.1,214.55,214.54,39.10432314]
[1756431629405,0.78,214.55,214.51,11.18966749]
[1756431629613,0.68,214.54,214.52,39.08432314]
[1756431629803,0.1,214.55,214.52,45.61221791]
[1756431631001,0.1,214.55,214.52,39.08432314]
[1756431631191,0.68,214.54,214.52,39.08432314]
[1756431631597,0.68,214.54,214.53,38.8]
[1756431632008,0.1,214.55,214.53,38.8]
[1756431632315,0.1,214.55,214.54,0.28432314]
[1756431633623,0.78,214.55,214.54,0.28432314]
[1756431633953,0.78,214.55,214.52,4.6615249]
[1756431634098,0.78,214.55,214.54,38.74]
[1756431634297,0.1,214.55,214.54,38.74]
[1756431635014,0.78,214.55,214.46,37.65714297]
[1756431635218,6.52789477,214.53,214.48,38.68]
[1756431635528,7.20789477,214.53,214.49,0.28432314]
[1756431635724,6.52789477,214.5,214.43,24.78701533]
[1756431636025,6.52789477,214.5,214.46,0.28432314]
[1756431636026,7.20789477,214.5,214.46,0.28432314]
[1756431636222,33.20789477,214.52,214.47,38.68]
[1756431636626,0.68,214.51,214.47,38.68]
[1756431636802,0.68,214.5,214.47,38.68]
[1756431637008,0.68,214.49,214.47,38.68]
[1756431637226,6.52789477,214.51,214.47,38.68]
[1756431637408,7.20789477,214.51,214.47,38.68]
[1756431637821,7.20789477,214.51,214.47,43.34256354]
[1756431638018,0.68,214.51,214.47,43.34256354]
[1756431638837,0.1,214.55,214.5,6.52789477]
[1756431639025,0.1,214.55,214.53,6.52789477]
[1756431639218,0.1,214.55,214.54,6.81221791]
[1756431639827,0.1,214.55,214.54,25.74894737]
[1756431641467,0.06,214.58,214.55,13.87991715]
[1756431641737,1e-08,214.58,214.57,20.40781192]
[1756431642247,1e-08,214.58,214.57,21.08781192]
[1756431642542,1e-08,214.58,214.57,32.08781192]
[1756431642844,1e-08,214.58,214.57,25.55991715]
[1756431643021,1e-08,214.58,214.57,70.66781192]
[1756431643226,1e-08,214.58,214.57,75.32829567]
[1756431643421,1e-08,214.6,214.59,46.40781192]
[1756431643626,0.68,214.73,214.64,13.59559401]
[1756431643831,0.68,214.73,214.7,6.52789477]
[1756431644031,0.68,214.73,214.71,38.90432314]
[1756431644526,0.68,214.75,214.71,38.90432314]
[1756431644726,0.68,214.74,214.71,38.90432314]
[1756431644925,0.68,214.73,214.71,38.90432314]
[1756431645130,0.91377561,214.81,214.71,38.40432314]
[1756431645372,7.20789477,214.78,214.72,20.12348878]
[1756431645543,0.68,214.78,214.73,45.10789477]
[1756431645747,0.68,214.77,214.73,38.58]
[1756431645942,7.20789477,214.76,214.73,38.64]
[1756431646166,0.68,214.75,214.73,38.64]
[1756431646371,6.52789477,214.77,214.73,38.64]
[1756431646553,0.68,214.76,214.73,38.64]
[1756431647560,6.52789477,214.78,214.73,38.64]
[1756431647772,0.68,214.75,214.73,38.64]
[1756431648554,7.20789477,214.77,214.73,38.64]
[1756431648776,0.68,214.76,214.73,38.64]
[1756431650073,0.68,214.75,214.73,38.64]
[1756431650287,0.68,214.75,214.73,38.54]
[1756431651384,6.52789477,214.77,214.73,38.54]
[1756431651564,6.52789477,214.78,214.73,43.19697571]
[1756431651755,7.20789477,214.78,214.73,43.19697571]
[1756431651950,0.91377561,214.81,214.73,43.19697571]
[1756431652152,27.59377561,214.81,214.73,43.87697571]
[1756431652385,6.52789477,214.78,214.73,43.87697571]
[1756431652551,6.52789477,214.78,214.73,43.19697571]
[1756431652859,0.74,214.77,214.73,43.19697571]
[1756431653178,0.74,214.77,214.73,38.54]
[1756431653477,0.74,214.77,214.73,43.19698579]
[1756431653478,0.06,214.77,214.73,43.19698579]
[1756431654281,0.68,214.76,214.71,0.03]
[1756431654458,6.58789477,214.77,214.72,38.44]
[1756431654776,0.68,214.76,214.73,38.44]
[1756431655076,6.52789477,214.76,214.73,38.44]
[1756431655579,0.06,214.77,214.73,38.44]
[1756431655580,6.58789477,214.77,214.73,38.44]
[1756431655874,7.20789477,214.76,214.73,38.44]
[1756431656493,6.52789477,214.75,214.73,38.44]
[1756431656847,0.06,214.77,214.74,0.68]
[1756431657050,0.06,214.77,214.73,38.44]
[1756431657051,0.74,214.77,214.73,38.44]
[1756431657252,6.52789477,214.76,214.73,38.44]
[1756431657648,7.26789477,214.77,214.73,38.44]
[1756431658052,6.52789477,214.75,214.73,38.44]
[1756431658256,0.06,214.77,214.73,38.44]
[1756431658456,6.58789477,214.77,214.73,38.44]
[1756431658672,0.06,214.77,214.73,38.44]
[1756431658853,0.06,214.77,214.73,43.09699989]
[1756431659048,0.06,214.77,214.74,0.68]
[1756431659253,0.06,214.77,214.75,7.20789477]
[1756431659560,0.06,214.77,214.76,38.34]
[1756431659877,0.06,214.77,214.76,42.99636058]
[1756431660284,0.06,214.77,214.72,11.46944592]
[1756431660488,6.52789477,214.75,214.73,38.34]
[1756431660672,6.52789477,214.76,214.73,39.05]
[1756431660877,6.52789477,214.76,214.71,5.39744294]
[1756431661087,6.52789477,214.76,214.72,0.71]
[1756431661287,6.52789477,214.76,214.73,38.34]
[1756431661695,6.52789477,214.76,214.73,39.05]
[1756431661878,6.52789477,214.76,214.73,43.70685563]
[1756431662073,6.52789477,214.76,214.73,4.65685563]
[1756431662382,6.52789477,214.76,214.74,38.34]
[1756431663693,0.06,214.77,214.74,38.32]
[1756431664298,0.06,214.77,214.76,6.52789477]
[1756431664669,0.06,214.77,214.76,7.23789477]
[1756431665678,0.06,214.77,214.76,4.65636058]
[1756431665989,0.06,214.77,214.76,43.68636058]
[1756431666491,0.06,214.77,214.76,42.97636058]
[1756431667693,0.06,214.77,214.74,6.52789477]
[1756431667893,6.52789477,214.76,214.75,38.32]
[1756431668195,0.06,214.77,214.74,38.32]
[1756431669309,6.58789477,214.77,214.74,38.32]
[1756431669770,0.06,214.77,214.75,4.65657741]
[1756431670167,0.06,214.77,214.76,0.71]
[1756431670394,0.06,214.77,214.76,7.23789477]
[1756431670800,0.06,214.77,214.76,13.76578977]
[1756431671096,0.06,214.77,214.76,13.05578977]
[1756431671775,0.06,214.77,214.76,17.71215035]
[1756431672406,1e-08,214.77,214.76,32.01774436]
[1756431672577,1e-08,214.77,214.76,32.3020675]
[1756431674075,1e-08,214.77,214.76,70.6220675]
[1756431674400,1e-08,214.77,214.76,56.74215035]
[1756431674593,1e-08,214.77,214.76,56.03215035]
[1756431674899,1e-08,214.77,214.76,70.6220675]
[1756431675477,1e-08,214.77,214.76,81.6220675]
[1756431676986,1e-08,214.77,214.76,28.99647349]
[1756431677182,1e-08,214.77,214.76,81.6220675]
[1756431678922,0.71,214.89,214.79,26.0]
[1756431679079,0.71,214.89,214.85,6.52789477]
[1756431679382,0.71,214.89,214.86,44.82789477]
[1756431682203,0.71,214.88,214.87,4.65397682]
[1756431683290,7.23789477,214.88,214.84,13.992863]
[1756431683605,6.52789477,214.86,214.84,38.3]
[1756431684101,0.71,214.85,214.84,38.3]
[1756431684306,0.71,214.9,214.84,38.3]
[1756431684492,26.0,214.94,214.87,6.52789477]
[1756431684804,6.52789477,214.91,214.88,38.3]
[1756431685112,0.71,214.9,214.88,38.3]
[1756431685687,26.0,214.95,214.88,38.3]
[1756431685896,7.23789477,214.9,214.88,38.3]
[1756431686096,0.71,214.89,214.88,38.3]
[1756431686507,0.71,214.92,214.88,38.3]
[1756431686699,6.52789477,214.91,214.88,38.3]
[1756431686894,0.71,214.91,214.88,38.3]
[1756431687090,7.23789477,214.9,214.86,4.65417448]
[1756431687295,7.23789477,214.9,214.88,38.3]
[1756431687590,6.52789477,214.91,214.88,38.3]
[1756431687909,29.86577319,214.97,214.88,38.3]
[1756431687910,0.71,214.94,214.88,38.3]
[1756431688108,0.71,214.93,214.88,38.3]
[1756431688408,6.52789477,214.91,214.88,38.3]
[1756431688590,6.52789477,214.91,214.83,12.3470441]
[1756431688591,0.71,214.9,214.85,6.52789477]
[1756431688791,0.71,214.89,214.86,38.3]
[1756431689003,6.52789477,214.91,214.86,38.3]
[1756431689190,6.52789477,214.91,214.86,44.82789477]
[1756431689191,0.71,214.91,214.86,44.82789477]
[1756431689606,8.51737693,214.98,214.86,39.01]
[1756431689607,6.52789477,214.93,214.86,39.01]
[1756431689914,7.23789477,214.93,214.87,6.52789477]
[1756431690311,0.69,214.96,214.88,0.71]
[1756431690514,3.86577319,215.02,214.93,6.52789477]
[1756431690719,0.69,214.99,214.94,38.28]
[1756431690893,0.69,214.98,214.94,38.28]
[1756431691093,38.3,215.04,214.94,44.80789477]
[1756431691094,0.69,214.97,214.94,44.80789477]
[1756431691291,3.86577319,215.03,214.94,38.28]
[1756431691509,6.52789477,214.99,214.94,38.28]
[1756431691713,0.69,214.98,214.94,38.28]
[1756431691909,0.69,214.97,214.94,38.28]
[1756431692210,0.69,214.96,214.94,38.28]
[1756431692414,0.06,214.95,214.94,38.28]
[1756431692618,0.75,214.95,214.94,38.28]
[1756431692803,0.06,214.95,214.94,38.28]
[1756431693904,0.06,214.95,214.94,50.17035592]
[1756431694910,0.06,214.95,214.94,49.46035592]
[1756431695111,0.06,214.95,214.94,50.17035592]
[1756431695418,0.06,214.95,214.94,42.93246115]
[1756431696120,0.06,214.95,214.94,49.46035592]
[1756431696414,0.06,214.95,214.94,38.28]
[1756431696614,0.06,214.95,214.94,45.51789477]
[1756431696799,0.06,214.95,214.94,50.17035592]
[1756431697220,0.06,214.95,214.92,6.527895]
[1756431697425,0.06,214.95,214.94,38.28]
[1756431699004,0.06,214.95,214.94,42.93246115]
[1756431699313,0.75,214.95,214.94,38.26]
[1756431699514,0.06,214.95,214.94,45.49789477]
[1756431700716,0.06,214.95,214.94,44.78789477]
[1756431701108,0.06,214.95,214.94,50.15035592]
[1756431704325,0.06,214.95,214.94,49.65035592]
[1756431705398,0.06,214.95,214.94,47.34761263]
[1756431705796,0.06,214.95,214.94,53.87550763]
[1756431706822,0.06,214.95,214.94,11.18035615]
[1756431707021,0.06,214.95,214.94,47.11761263]
[1756431708103,0.06,214.95,214.94,8.87761263]
[1756431708629,0.06,214.95,214.94,47.11761263]
[1756431709124,0.06,214.95,214.94,47.82761263]
[1756431709323,0.06,214.95,214.94,47.11761263]
[1756431709505,0.06,214.95,214.94,47.82761263]
[1756431710430,0.69,215.07,214.96,0.28432314]
[1756431710735,0.69,215.07,215.04,4.22515148]
[1756431711028,0.69,215.07,215.0,0.28432314]
[1756431711029,0.69,215.06,215.02,4.22515148]
[1756431711221,0.69,215.05,215.03,38.24]
[1756431711920,0.69,215.05,215.03,42.46515148]
[1756431712327,0.69,215.05,215.03,47.11551977]
[1756431712913,0.69,215.07,215.04,4.22515148]
[1756431713108,0.69,215.09,215.06,4.22515148]
[1756431713305,0.69,215.09,215.07,38.24]
[1756431713824,0.69,215.09,215.07,42.46515148]
[1756431714419,4.22515148,215.12,215.07,47.11473388]
[1756431714715,0.69,215.11,215.07,42.8895824]
[1756431715022,0.69,215.1,215.07,38.24]
[1756431715225,0.69,215.09,215.03,4.225151]
[1756431715523,0.69,215.08,215.04,38.24]
[1756431715729,4.22515148,215.09,215.04,38.24]
[1756431715914,0.69,215.07,215.04,38.24]
[1756431716109,0.69,215.06,215.04,4.22515148]
[1756431716311,4.22515148,215.09,215.05,38.22]
[1756431716703,4.22515148,215.09,215.03,8.87558129]
[1756431716910,4.22515148,215.05,215.01,12.337961]
[1756431717133,4.22515148,215.05,215.02,38.22]
[1756431717344,4.22515148,215.03,214.98,12.339999]
[1756431717524,4.22515148,215.0,214.98,12.339999]
[1756431717702,4.91515148,215.03,214.97,42.44515148]
[1756431717908,4.22515148,215.02,214.97,38.22]
[1756431718118,0.69,215.01,214.97,38.22]
[1756431718317,0.69,215.0,214.95,4.22515148]
[1756431718542,0.69,214.99,214.96,38.22]
[1756431718709,0.69,215.01,214.96,47.0970922]
[1756431718909,0.69,215.0,214.96,8.8770922]
[1756431719142,0.69,215.0,214.97,38.22]
[1756431719521,6.50187437,215.01,214.97,38.22]
[1756431719726,7.19187437,215.01,214.97,38.22]
[1756431719909,7.19187437,215.01,214.99,4.65137913]
[1756431720239,0.7,215.0,214.93,13.986992]
[1756431720450,6.50187437,214.98,214.94,38.22]
[1756431720671,0.7,215.01,214.94,44.72187437]
[1756431720827,7.20187437,215.06,214.95,0.7]
[1756431721033,6.50187437,215.05,214.99,6.50187437]
[1756431721522,6.50187437,215.0,214.96,13.985036]
[1756431721745,7.20187437,214.99,214.93,5.35267761]
[1756431721953,7.20187437,214.99,214.96,38.22]
[1756431722135,6.50187437,214.99,214.89,13.59559401]
[1756431722335,3.88760819,215.08,214.9,38.22]
[1756431722336,6.50187437,214.95,214.9,38.22]
[1756431722550,6.50187437,215.0,214.93,6.50187437]
[1756431722749,0.7,215.01,214.94,38.22]
[1756431722948,0.7,215.01,214.96,6.50187437]
[1756431723140,0.7,215.0,214.95,44.72187437]
[1756431723334,26.0,215.07,214.97,6.50187437]
[1756431723544,7.20187437,215.04,214.98,6.50187437]
[1756431723745,0.7,215.04,214.99,44.72187437]
[1756431724040,6.50187437,215.03,214.99,42.87117329]
[1756431724251,0.7,215.03,214.99,49.37304766]
[1756431724749,0.7,215.03,215.0,38.22]
[1756431724952,0.7,215.07,215.02,6.50187437]
[1756431725131,6.50187437,215.09,215.03,6.50187437]
[1756431725324,0.7,215.06,215.03,6.50187437]
[1756431725649,6.50187437,215.08,215.02,6.50187437]
[1756431726135,6.50187437,215.08,215.02,11.1525561]
[1756431726449,6.50187437,215.08,215.0,38.92]
[1756431726450,6.50187437,215.04,215.0,38.22]
[1756431726649,0.7,215.03,214.98,6.50187437]
[1756431726834,0.7,215.03,215.0,38.22]
[1756431727146,26.0,215.09,215.01,7.20187437]
[1756431727147,7.20187437,215.07,215.01,7.20187437]
[1756431727324,7.20187437,215.07,215.01,6.50187437]
[1756431727531,0.7,215.07,215.02,6.50187437]
[1756431727849,7.20187437,215.07,215.01,6.50187437]
[1756431728032,0.7,215.07,215.02,11.15260453]
[1756431728346,0.7,215.11,215.05,6.50187437]
[1756431728522,0.7,215.11,215.06,6.50187437]
[1756431729249,0.7,215.11,215.05,38.22]
[1756431729250,0.7,215.1,215.05,44.72187437]
[1756431729446,6.50187437,215.07,215.03,42.867876]
[1756431729646,7.20187437,215.07,215.03,38.22]
[1756431730247,6.50187437,215.09,215.03,50.07222672]
[1756431730441,0.7,215.08,215.0,4.65116279]
[1756431730639,6.50187437,215.06,215.01,38.2]
[1756431730838,6.50187437,215.02,214.98,13.984384]
[1756431731034,7.20187437,215.02,214.99,38.2]
[1756431731239,0.7,215.02,214.97,4.65178561]
[1756431731550,0.7,215.02,214.98,38.2]
[1756431732356,0.7,215.02,214.97,42.85175477]
[1756431732554,0.7,215.02,214.97,49.35362914]
[1756431732751,0.7,215.02,214.97,11.15362914]
[1756431732956,0.7,215.02,214.97,11.85362914]
[1756431733258,0.7,215.02,214.97,38.9]
[1756431733631,6.50187437,215.05,214.99,6.50187437]
[1756431733832,8.53596145,215.13,215.04,6.50187437]
[1756431734031,6.50187437,215.11,215.05,7.20187437]
[1756431734256,7.20187437,215.12,215.06,11.15173952]
[1756431734557,6.50187437,215.11,215.06,11.15173952]
[1756431734728,7.20187437,215.11,215.06,11.15173952]
[1756431734928,0.7,215.11,215.06,11.15173952]
[1756431735148,7.20187437,215.11,215.06,11.85173952]
[1756431735556,26.0,215.12,215.06,11.85173952]
[1756431735756,0.7,215.13,215.07,6.50187437]
[1756431735957,6.50187437,215.14,215.08,6.50187437]
[1756431737456,6.50187437,215.12,215.07,0.7]
[1756431737641,0.7,215.14,215.08,4.64943276]
[1756431737844,0.7,215.14,215.08,11.15130713]
[1756431738153,6.50187437,215.13,215.08,4.64943276]
[1756431738361,7.20187437,215.13,215.08,4.64943276]
[1756431738732,6.50187437,215.16,215.1,6.50187437]
[1756431739635,6.50187437,215.16,215.11,4.64878434]
[1756431739861,6.50187437,215.15,215.11,4.64878434]
[1756431740060,7.20187437,215.15,215.11,4.64878434]
[1756431741562,0.7,215.15,215.09,50.03089314]
[1756431741743,7.20187437,215.15,215.09,50.03089314]
[1756431741943,26.0,215.16,215.09,50.03089314]
[1756431742157,26.7,215.18,215.09,50.03089314]
[1756431742158,6.50187437,215.15,215.09,50.03089314]
[1756431742440,26.7,215.18,215.09,50.03089314]
[1756431742441,6.50187437,215.16,215.1,7.20187437]
[1756431743466,4.22066295,215.16,215.1,4.92066295]
[1756431743665,4.22066295,215.16,215.11,4.64878434]
[1756431743865,4.92066295,215.16,215.11,4.64878434]
[1756431744474,0.7,215.18,215.11,5.34878434]
[1756431744871,4.92066295,215.18,215.11,5.34878434]
[1756431745164,0.7,215.18,215.11,9.56944729]
[1756431745372,4.22066295,215.17,215.11,9.56944729]
[1756431746856,4.64693445,215.2,215.12,4.22066295]
[1756431747057,4.22066295,215.15,215.04,4.75039229]
[1756431747262,4.22066295,215.13,215.07,4.22066295]
[1756431747461,4.22066295,215.13,215.08,38.18]
[1756431747669,4.92066295,215.13,215.08,38.88]
[1756431747968,0.7,215.13,215.08,38.88]
[1756431748149,4.92066295,215.13,215.08,38.88]
[1756431748564,4.92066295,215.13,215.09,4.6492166]
[1756431750282,4.22066295,215.13,215.07,4.64964895]
[1756431750574,0.71,215.12,215.07,47.0303119]
[1756431750775,0.71,215.12,215.07,47.7003119]
[1756431751086,4.22066295,215.13,215.07,47.7003119]
[1756431751087,4.22066295,215.13,215.08,0.67]
[1756431751258,4.93066295,215.14,215.08,0.67]
[1756431751458,4.93066295,215.14,215.08,5.3192866]
[1756431752766,4.93066295,215.14,215.08,9.53994955]
[1756431753569,4.93066295,215.13,215.05,0.67]
[1756431753885,0.71,215.13,215.07,4.22066295]
[1756431754098,0.71,215.13,215.08,4.22066295]
[1756431754580,0.71,215.13,215.08,4.89066295]
[1756431754880,0.71,215.12,215.06,4.64986515]
[1756431755068,4.22066295,215.08,215.03,38.16]
[1756431755374,0.71,215.11,215.03,0.67]
[1756431755375,4.22066295,215.07,215.03,0.67]
[1756431755780,4.93066295,215.06,215.0,4.22066295]
[1756431755963,4.22066295,215.04,214.98,9.54224656]
[1756431756168,4.22066295,215.02,214.98,38.16]
[1756431756366,4.22066295,215.03,214.98,42.81154522]
[1756431756684,4.22066295,215.04,214.99,0.67]
[1756431756978,4.22066295,215.1,215.03,4.22066295]
[1756431757158,0.71,215.11,215.06,4.22066295]
[1756431757357,17.87068819,215.16,215.06,4.22066295]
[1756431757358,4.93066295,215.13,215.07,8.87017914]
[1756431758169,4.22066295,215.15,215.09,4.22066295]
[1756431758371,38.16,215.17,215.1,4.22066295]
[1756431758577,38.87,215.17,215.11,4.22066295]
[1756431758887,43.09066295,215.17,215.11,4.22066295]
[1756431759086,4.22066295,215.16,215.1,4.22066295]
[1756431759388,0.71,215.17,215.12,6.49308172]
[1756431759564,6.49308172,215.18,215.12,7.16308172]
[1756431760486,7.20308172,215.19,215.13,6.49308172]
[1756431761358,6.49308172,215.18,215.11,4.64878434]
[1756431761557,7.20308172,215.17,215.11,11.14186606]
[1756431761785,0.71,215.17,215.12,6.49308172]
[1756431761974,0.71,215.17,215.12,7.16308172]
[1756431762281,0.71,215.17,215.12,6.49308172]
[1756431762462,0.71,215.16,215.12,6.49308172]
[1756431763283,0.71,215.18,215.13,6.49308172]
[1756431763484,0.71,215.17,215.13,6.49308172]
[1756431764067,6.49308172,215.19,215.13,6.49308172]
[1756431764273,7.20308172,215.19,215.13,6.49308172]
[1756431764590,0.71,215.19,215.14,11.14121781]
[1756431764770,0.71,215.23,215.16,6.49308172]
[1756431764980,0.71,215.22,215.17,6.49308172]
[1756431765165,0.71,215.21,215.17,6.49308172]
[1756431765368,0.71,215.2,215.14,4.64813609]
[1756431765774,7.20308172,215.2,215.14,11.14121781]
[1756431766388,0.71,215.2,215.15,6.49308172]
[1756431766587,6.49308172,215.21,215.15,6.49308172]
[1756431766790,0.71,215.19,215.15,6.49308172]
[1756431767095,0.71,215.18,215.15,6.49308172]
[1756431767298,0.71,215.18,215.14,4.64813609]
[1756431767299,0.71,215.18,215.14,6.49308172]
[1756431767792,0.71,215.18,215.14,11.14115718]
[1756431767994,0.71,215.17,215.1,38.12]
[1756431768383,0.71,215.17,215.12,6.49308172]
[1756431769117,0.71,215.17,215.1,4.64900046]
[1756431769295,6.49308172,215.18,215.12,6.49308172]
[1756431769470,0.71,215.17,215.12,6.49308172]
[1756431769671,26.0,215.21,215.1,11.14208218]
[1756431769672,7.20308172,215.16,215.1,11.14208218]
[1756431769898,0.71,215.15,215.1,11.14208218]